Cogmind - Beta 17.1 @@@ ROGUE MODE // 2026.09.18 @ 04:31:32 Player: robotdolboeb Result: Destroyed by S-10 Pest with Light Assault Rifle Performance ------------- Evolutions (1) 500 Regions Visited (2) 400 Robots Destroyed (33) 165 Value Destroyed (1004) 1004 Prototype IDs (1) 20 Alien Tech Used (0) 0 Bonus (0) 0 TOTAL SCORE: 2089 Bonus ------- None Cogmind --------- Core Integrity 0/400 Matter 290/300 Energy 80/100 System Corruption 0% Temperature Cool (0) Movement Core (100) Ox1 Location -9/Materials Parts ------- > --- POWER (1) -------- (None) > --- PROPULSION (2) --- (None) > --- UTILITY (3) ------ Disposable Heat Sink Hardened Light Armor Plating > --- WEAPON (3) ------- (None) > --- INVENTORY (5) ---- Light Ion Engine Aluminum Leg Seismic Detector Light Armor Plating Peak State ------------ > --- POWER ------------ Ion Engine > --- PROPULSION ------- Aluminum Leg Aluminum Leg > --- UTILITY ---------- Heat Sink Small Storage Unit Light Armor Plating > --- WEAPON ----------- Beam Cannon Beam Cannon Heavy Assault Rifle > --- INVENTORY -------- Ion Engine Light Ion Engine Aluminum Leg Aluminum Leg Seismic Detector Light Armor Plating Shield Generator EM Shotgun [Rating: 11] Favorites ----------- Power Ion Engine Engine Ion Engine Propulsion Aluminum Leg Treads Light Treads Leg Aluminum Leg Utility Small Storage Unit Device Heat Sink Storage Small Storage Unit Protection Light Armor Plating Weapon Beam Cannon Energy Gun Small Laser Energy Cannon Beam Cannon Ballistic Gun Assault Rifle Ballistic Cannon Light Cannon Build | -11 -10 -9 ------- Run | Yrd Mat Mat Slots Evolved 2 | . . 2 Power . | . . . Propulsion . | . . . Utility 1 | . . 1 Weapon 1 | . . 1 Parts Attached 40 | 8 8 24 Power 6 | 2 1 3 Engine 6 | 2 1 3 Core . | . . . Reactor . | . . . Propulsion 10 | 3 1 6 Treads 1 | 1 . . Leg 9 | 2 1 6 Wheel . | . . . Hover . | . . . Flight . | . . . Utility 13 | 1 2 10 Device 7 | . 1 6 Storage 1 | 1 . . Processor . | . . . Hackware . | . . . Protection 5 | . 1 4 Artifact . | . . . Weapon 11 | 2 4 5 Energy Gun 3 | 1 1 1 Energy Cannon 4 | . 2 2 Ballistic Gun 3 | 1 1 1 Ballistic Cannon 1 | . . 1 Launcher . | . . . Special Weapon . | . . . Impact Weapon . | . . . Slashing Weapon . | . . . Piercing Weapon . | . . . Special Melee Weapon . | . . . Unidentified Prototypes 1 | . . 1 Parts Lost 16 | . 1 15 Power 2 | . . 2 Propulsion 2 | . . 2 Utility 7 | . 1 6 Weapon 5 | . . 5 Highest Loss Streak 9 | . 1 9 To Critical Strikes . | . . . Average Backups 5 | 2 4 6 Power 1 | . 1 1 Propulsion 1 | . 1 1 Utility 1 | . . 1 Weapon 1 | . 1 1 Tool/Special . | . . . Unused Backups 5 | . 1 4 Power 1 | . . 1 Propulsion 2 | . 1 1 Utility 1 | . . 1 Weapon 1 | . . 1 Tool/Special . | . . . Average Slot Usage (%) 96 | . 93 97 Engine 11 | . 14 11 Leg 23 | . 28 21 Device 11 | . 7 13 Storage 11 | . 14 10 Protection 5 | . 1 7 Energy Gun 4 | . 11 2 Energy Cannon 16 | . 4 21 Ballistic Gun 7 | . 12 5 Ballistic Cannon 2 | . . 3 Peak Build Rating 11 | 6 7 11 Average Rating 8 | 5 6 9 On Entrance 4 | . 6 7 Avg Prop Armor Cover (%) . | . . . Naked Turns . | . . . Heaviest Build 24 | 13 19 24 Greatest Support 20 | 20 20 20 Greatest Overweight (x) 2 | 1 . 2 Average Overweight (x) . | . . . Largest Inventory Capacity 8 | 8 8 8 Average Capacity 7 | 7 8 7 Most Carried 8 | 4 8 8 Average Carried 5 | 2 4 6 Final Capacity 8 | 8 8 5 Final Carried 8 | 3 8 4 Class Distribution -------------------- 37% | Mutant 22% | Scavenger-Gunner 20% | Scavenger-Tank 12% | Tank 3% | Gunner Dominant Class ---------------- Mutant | -10/Materials Scavenger-Gunner | -9/Materials Resources | -11 -10 -9 ----------- Run | Yrd Mat Mat Matter Collected 920 | 243 162 515 Remotely . | . . . Salvage Created 1168 | . 406 762 Parts 73 | . 21 52 Haulers Intercepted . | . . . Recyclers Shooed . | . . . Parts Field Recycled . | . . . Retrieved Matter . | . . . Parts Self-Destructed . | . . . Prevented . | . . . Parts Restored . | . . . Kills | -11 -10 -9 ------- Run | Yrd Mat Mat Combat Hostiles Destroyed 31 | . 9 22 Guns 14 | . 8 6 Cannons 17 | . 1 16 Classes Destroyed 6 | . 1 5 Worker 1 | . . 1 Watcher 1 | . . 1 Swarmer 8 | . . 8 Grunt 18 | . 9 9 Brawler 1 | . . 1 Sentry 4 | . . 4 Best Kill Streak 6 | . 3 6 Combat Bots Only 6 | . 3 6 Max Kills in Single Turn 1 | . 1 1 Gunslinging . | . . . Exploded . | . . . Melee . | . . . Uniques/NPCs Destroyed . | . . . Combat | -11 -10 -9 -------- Run | Yrd Mat Mat Hostile Shots Fired 271 | . 54 217 Missed 61 | . 13 48 Hits 210 | . 41 169 Projectile 210 | . 41 169 Critical Strikes 1 | . . 1 Damage Taken 2211 | . 456 1755 Core 520 | . 117 403 Absorbed by Shields 80 | . . 80 Core Remaining (%) 76 | 100 53 . Volleys Fired 102 | 1 34 67 Largest 3 | 2 2 3 Hottest 185 | 60 120 185 Shots Fired 251 | 2 68 181 Gun 119 | 2 62 55 Cannon 132 | . 6 126 Launcher . | . . . Special . | . . . Kinetic 87 | 1 31 55 Thermal 155 | 1 28 126 Explosive . | . . . Electromagnetic 9 | . 9 . Robot Hit Streak 12 | . 12 12 Robot Miss Streak 6 | . 2 6 Penetration Max . | . . . Secondary Targets . | . . . Shots Hit Robots 128 | . 42 86 Core Hits 51 | . 19 32 Critical Kills . | . . . Critical Parts Destroyed . | . . . Critical Strikes 2 | . 1 1 Blast 1 | . . 1 Corrupt 1 | . 1 . Melee Attacks . | . . . Impact . | . . . Slashing . | . . . Piercing . | . . . Sneak Attacks . | . . . Combat Hostiles . | . . . Follow-up Attacks . | . . . Damage Inflicted 2059 | . 575 1484 Guns 859 | . 458 401 Cannons 1134 | . 51 1083 Explosions 66 | . 66 . Melee . | . . . Ramming . | . . . Kinetic 576 | . 193 383 Thermal 1396 | . 295 1101 Explosive . | . . . Electromagnetic 87 | . 87 . Impact . | . . . Slashing . | . . . Piercing . | . . . Highest Corruption . | . . . Average Corruption . | . . . Corruption Purged . | . . . Corruption Blocked . | . . . Overload Shots . | . . . Overflow Damage 23 | . . 23 Projectiles 23 | . . 23 Explosions . | . . . Melee . | . . . Knockbacks 3 | . . 3 Impact . | . . . Kinetic 2 | . . 2 Secondary 1 | . . 1 Self-Inflicted Damage . | . . . Shots . | . . . Rammed . | . . . Targets Rammed . | . . . Kicked . | . . . Crushed . | . . . Highest Temperature 580 | . 225 580 Average Temperature 176 | . 64 209 Received Heat Transfer 672 | . 222 450 Effects 19 | . . 19 Shutdowns 5 | . . 5 Energy Bleed 3 | . . 3 Interference 2 | . . 2 Matter Decay 3 | . . 3 Damage (major) 5 | . . 5 Damage (core) 1 | . . 1 Siege Activations . | . . . Martial Activations . | . . . Shielding Activations . | . . . Robots Disrupted . | . . . Combat Hostiles . | . . . Robots Corrupted . | . . . Combat Hostiles . | . . . Parts Fried . | . . . Impact Corruptions . | . . . Robots Melted . | . . . Combat Hostiles . | . . . Parts Melted 4 | . 1 3 Heat Transferred 2966 | . 561 2405 Parts Sabotaged . | . . . Parts Stolen . | . . . Parts Stripped . | . . . Power Chain Reactions 1 | . 1 . Alert | -11 -10 -9 ------- Run | Yrd Mat Mat Maximum Alert Level 1 | . . 1 Low Security (%) 87 | 100 100 79 Level 1 12 | . . 20 Level 2 . | . . . Level 3 . | . . . Level 4 . | . . . Level 5 . | . . . High Security . | . . . Max Security . | . . . Peak Influence 344 | . 136 344 Initial 50 | . . 50 Average 72 | . 67 91 Influence Increases 1081 | . 280 801 Destroy 0b10 Robot/C 620 | . 180 440 Destroy 0b10 Robot/NC 10 | . . 10 Destroy Leader 172 | . 50 122 Disable Machine 60 | . 15 45 Destroy Structure 9 | . 5 4 Lose Combat Pursuer 210 | . 30 180 Influence Decreases 776 | . 160 616 Entered New Map 70 | . . 70 Time Decay 546 | . 150 396 Lost Part 160 | . 10 150 Squads Dispatched 6 | . 3 3 Investigation . | . . . Extermination . | . . . Reinforcement 6 | . 3 3 Assault . | . . . Garrison . | . . . Intercept . | . . . Searches Triggered . | . . . Construction Impeded . | . . . Haulers Reinforced . | . . . Active Scanning Responses . | . . . Cargo Convoy Interrupts . | . . . Stealth | -11 -10 -9 --------- Run | Yrd Mat Mat Distress Signals . | . . . Communications Jammed . | . . . Distress Signals . | . . . Times Spotted 61 | . 18 43 Peak Tracking Total 7 | . 4 7 Tactical Retreats 7 | . 2 5 Traps | -11 -10 -9 ------- Run | Yrd Mat Mat Traps Triggered 1 | . 1 . Indirectly . | . . . Trap Hack Attempts . | . . . Triggered . | . . . Disarmed . | . . . Reprogrammed . | . . . Reused . | . . . Traps Extracted . | . . . Installed . | . . . Triggered . | . . . Machines | -11 -10 -9 ---------- Run | Yrd Mat Mat Machines Disabled 4 | . 1 3 Max in Single Turn 1 | . 1 1 Machines Repaired . | . . . Machines Dismantled . | . . . Machines Sabotaged . | . . . Overloaded Fab Kills . | . . . Hacking | -11 -10 -9 --------- Run | Yrd Mat Mat Machines Accessed 2 | . 1 1 Terminals 2 | . 1 1 Fabricators . | . . . Repair Stations . | . . . Recycling Units . | . . . Scanalyzers . | . . . Garrison Access . | . . . Total Hacks 2 | . 1 1 Successful 1 | . 1 . Failed 1 | . . 1 Catastrophic . | . . . Database Lockouts . | . . . Manual . | . . . Terminals 2 | . 1 1 Fabricators . | . . . Repair Stations . | . . . Recycling Units . | . . . Scanalyzers . | . . . Garrison Access . | . . . Terminal Hacks 1 | . 1 . Locate Traps 1 | . 1 . Fabricator Hacks . | . . . Repair Station Hacks . | . . . Recycling Unit Hacks . | . . . Scanalyzer . | . . . Garrison Access Hacks . | . . . Unauthorized Hacks . | . . . Terminals . | . . . Fabricators . | . . . Repair Stations . | . . . Recycling Units . | . . . Scanalyzers . | . . . Garrison Access . | . . . Data Cores Recovered . | . . . Used . | . . . Hacking Detections . | . . . Full Trace Events . | . . . Feedback Events . | . . . Feedback Blocked . | . . . Robot Schematics Acquired . | . . . Robots Built . | . . . Authchips . | . . . Time . | . . . Total Robot Build Rating . | . . . Part Schematics Acquired . | . . . Parts Built . | . . . Authchips . | . . . Time . | . . . Total Part Build Rating . | . . . Part Studies Acquired . | . . . Parts Repaired . | . . . Time . | . . . Parts Recycled . | . . . Recycled Matter . | . . . Retrieved Matter . | . . . Retrieved Components . | . . . Parts Scanalyzed . | . . . Part Schematics Acquired . | . . . Parts Damaged . | . . . Bothacking | -11 -10 -9 ------------ Run | Yrd Mat Mat Used RIF Installer . | . . . Robots Hacked . | . . . Non-combat . | . . . Combat . | . . . Robot Hacks Applied . | . . . Relay Couplers Released . | . . . Fabnet Peak Effective % . | . . . Robots Rewired . | . . . Allies Hacked . | . . . Hacks Repelled . | . . . Allies | -11 -10 -9 -------- Run | Yrd Mat Mat Total Allies . | . . . Largest Group . | . . . Highest-Rated Group . | . . . Highest-Rated Ally . | . . . Total Orders . | . . . Ally Attacks . | . . . Total Damage . | . . . Kills . | . . . Allies Corrupted . | . . . Allies Melted . | . . . Intel | -11 -10 -9 ------- Run | Yrd Mat Mat Active Infowar (turns) 609 | . 252 357 Sensors 252 | . 252 . Seismic 357 | . . 357 Robot Analysis Total . | . . . Derelict Logs Recovered . | . . . Drone Launches . | . . . Drone Recoveries . | . . . Exploration | -11 -10 -9 ------------- Run | Yrd Mat Mat Turns Passed 2185 | 317 491 1377 Spaces Moved 1047 | 155 305 587 Core 13 | 7 . 6 Treads 42 | 42 . . Legs 992 | 106 305 581 Wheels . | . . . Hover . | . . . Flight . | . . . Fastest Speed 50 | 50 120 50 Average Speed 156 | 130 120 182 Slowest Speed 190 | 190 120 190 Overloaded Moves . | . . . Propulsion Burnouts . | . . . Robots Hopped . | . . . Potential Cave-ins . | . . . Cave-ins Triggered . | . . . Exploration Rate (%) 34 | 10 54 39 Regions Visited 2 Branch Regions . Pre-discovered Areas . | . . . Known Exits Taken . | . . . Unknown Exits Taken 2 | 1 1 . Scrap Searched . | . . . Spaces Dug . | . . . Terrain Destroyed 5 | . 5 . Melee . | . . . Projectile . | . . . AOE 5 | . 5 . Terrain Rammed . | . . . Walls Destroyed . | . . . Machines Disabled . | . . . Actions | -11 -10 -9 --------- Run | Yrd Mat Mat Total 1391 | 267 364 760 Wait 120 | 93 . 27 Move 1045 | 154 304 587 Hop . | . . . Pick Up 48 | 10 13 25 Fast Attach 1 | . . 1 Attach 29 | 7 4 18 Detach 3 | . . 3 Swap 17 | 1 4 12 Drop 26 | 1 5 20 Fire 102 | 1 34 67 Melee . | . . . Ram . | . . . Kick . | . . . Crush . | . . . Escape Stasis . | . . . Rewire . | . . . Trap . | . . . Miscellaneous . | . . . Route ------- -11/Scrapyard -10/Materials (discovered 2 exits: *Mat x2) -9/Materials History --------- Turn | Location | Event 29 | -11/Scrapyard | Discovered new exit (range 14) 318 | -11/Scrapyard | Entered Materials 319 | -10/Materials | Build established: Mutant 389 | -10/Materials | Discovered new exit (range 13) 660 | -10/Materials | Discovered new exit (range 15) 809 | -10/Materials | Entered another Materials area 809 | -9/Materials | Evolved 2 slots: Utility x1, Weapon x1 1387 | -9/Materials | Build established: Scavenger-Tank 1726 | -9/Materials | Build established: Scavenger-Gunner 2028 | -9/Materials | Core integrity fell below 50% 2169 | -9/Materials | Core integrity fell below 20% 2186 | -9/Materials | Destroyed by S-10 Pest with Light Assault Rifle Last Messages --------------- Electrolysis Chamber disabled. Beam Cannon destroyed. K-01 Serf collects debris. Hvy. Assault Rifle destroyed. K-01 Serf collects debris. Heat Sink destroyed. K-01 Serf collects debris. Sml. Storage Unit destroyed. Lgt. Treads melted. Y-45 Defender destroyed. Acquired 49 matter. Aluminum Leg destroyed. K-01 Serf collects debris. Ion Engine destroyed. K-01 Serf collects debris. Acquired 3 matter. Particle Gun destroyed. K-01 Serf collects debris. Acquired Hrd. Light Armor Plating. K-01 Serf collects debris. Map ----- +----------------------------------------------------+ | ####### # """"" ""## ???????????? | | # # ####### # """ ## ????##+?##?? | | + ############## ############# #### #?? | | # #?????# # ###### # | | # #?????#""" # #! """ + " ? | | ## #?????#""" + # """ # | | ?# #?????#""" # # """ # ## #?? | | ?# #?????# [ # = + # #???? ##?? | | ?#######?????# # # """ # #????????? | | ?????????????######## = "" # """ # #????????? | | ????????????????????# [ "" # """ + #????????? | | ????????????????????# " " # ## ##????????? | | ????????????????????# # """ ## #?????????? | | ????????????????????# # """ ## #?????????? | | ????????????????????#[ "" # """ ## #?????????? | | ????????????????????#%=""" # ## #?????????? | | ????????????????????# """ ######### #?????????? | | ????????????????????# #########+#?????????? | | ????????????????????# # #?????????? | | ????????????????????# """ # #?????????? | | ????????????????????# """ *# #?????????? | | ????????????????????# " %+ #?????????? | | ????????????????????# s###########?????????? | | ????????????????????# k s #???????????????????? | | ????????????????????# s #???????????????????? | | ????????????????????# !@! #???????????????????? | | ????????????????????# !! +???????????????????? | | ????????????????? !! #???????????????????? | | ?????????????? u #???????????????????? | | ??????????? #???????????????????? | | ????????????###+########## #???????????????????? | | ?????????????????????????# k #???????????????????? | | ????????????????????????? k ???????????????????? | | ????????????????????????? ??????????????????? | | ????????????????????????? ??????????????????? | | ????????????????????????? ?????????????????? | | ????????????????????????# ?????????????????? | | ?????????????????????????#### ????????????????? | | ?????????????????????????????a ????????????????? | | ????????????????????????????? ???????????????????? | | ?????????????????????????????????????????????????? | | ?????????????????????????????????????????????????? | | ?????????????????????????????????????????????????? | | ?????????????????????????????????????????????????? | | ?????????????????????????????????????????????????? | | ?????????????????????????????????????????????????? | | ?????????????????????????????????????????????????? | | ?????????????????????????????????????????????????? | | ?????????????????????????????????????????????????? | | ?????????????????????????????????????????????????? | +----------------------------------------------------+ Best States ------------- Heat Dissipation 48 Coolant Potential 50 Energy Generation 10 Energy Capacity 250 Matter Stores 300 Matter Capacity 300 Sight Range 16 Robot Scan Range 14 Terrain Scan Density 10 Armor Coverage 300 Evasion (%) 55 Recoil Reduction 1 Item Schematics ----------------- None Robot Schematics ------------------ None Fabricated ------------ Nothing Repaired ---------- Nothing Studied --------- None Alien Tech Used ----------------- None Achievements -------------- Bumper Bots Challenges ------------ None Game ------ Seed BraceResetProtection Manual? 0 Play Time 00:35:37 Cumulative 4.2 hours Start 2026.09.18 @ 03:10:18 End 2026.09.18 @ 04:31:32 Sessions 1 Manual Loads 0 Difficulty Rogue Special Mode None Game No. 3 Rogue 3 Adventurer 0 Explorer 0 Win Type - Total 0 Types 0/0/0/0/0/0/0/0/0/0 Lore% 1 Gallery% 8 Achievement% 8 Wizard Run 0 Options --------- Layout 1 ASCII 0 Keyboard 0 Movement Mouse Keybinds 0 Fullscreen 1 Font 32/SmallcapsGlow Map View 50x35 Zoom Use 0% Tactical HUD 0 Map Filters NONE Filters NONE Steam 1 RUN: 57af47c0-f95e-49b6-b0bc-1c0813d22fe5